Cogmind - Beta 10.1 *** ADVENTURER MODE // 2020.10.20 @ 18:48:06 Player: darlorth Result: Destroyed by H-55 Commando with Gauss Rifle Performance ------------- Evolutions (2) 1000 Regions Visited (4) 800 Robots Destroyed (22) 110 Value Destroyed (571) 571 Prototype IDs (0) 0 Alien Tech Used (0) 0 Bonus (114) 114 TOTAL SCORE: 2595 Bonus ------- Follower Combat Kills 114 Cogmind --------- Core Integrity 0/550 Matter 295/300 Energy 95/100 System Corruption 1% Temperature Cool (0) Movement Core (50) Location -8/Materials Parts ------- > --- POWER (1) -------- (None) > --- PROPULSION (4) --- (None) > --- UTILITY (4) ------ Melee Analysis Suite Core Shielding > --- WEAPON (2) ------- Scythe > --- INVENTORY (4) ---- Improved Heat Sink Compact Matter Pod (91) EM Pulse Gun Particle Gun Peak State ------------ > --- POWER ------------ (None) > --- PROPULSION ------- Advanced Treads > --- UTILITY ---------- Medium Storage Unit Melee Analysis Suite Medium Armor Plating > --- WEAPON ----------- Maul Scythe > --- INVENTORY -------- Improved Heat Sink Compact Matter Pod EM Pulse Gun Particle Gun [Rating: 14] Favorites ----------- Power Light Ion Engine Engine Light Ion Engine Propulsion Light Treads Treads Light Treads Utility Medium Storage Unit Device Sensor Array Storage Medium Storage Unit Processor Targeting Computer Protection Medium Armor Plating Weapon Light Assault Rifle Energy Gun Small Laser Ballistic Gun Light Assault Rifle Impact Weapon Maul Slashing Weapon Scythe Build | -11 -10 -10 -9 -8 ------- Run | Scr Mat Min Mat Mat Slots Evolved 4 | . . . 2 2 Power . | . . . . . Propulsion 2 | . . . 2 . Utility 2 | . . . . 2 Weapon . | . . . . . Parts Attached 21 | 5 3 2 1 10 Power 1 | 1 . . . . Engine 1 | 1 . . . . Core . | . . . . . Reactor . | . . . . . Propulsion 5 | 2 . . 1 2 Treads 5 | 2 . . 1 2 Leg . | . . . . . Wheel . | . . . . . Hover . | . . . . . Flight . | . . . . . Utility 8 | . 2 . . 6 Device 1 | . . . . 1 Storage 1 | . 1 . . . Processor 3 | . 1 . . 2 Hackware . | . . . . . Protection 3 | . . . . 3 Artifact . | . . . . . Weapon 7 | 2 1 2 . 2 Energy Gun 2 | 1 1 . . . Energy Cannon . | . . . . . Ballistic Gun 3 | 1 . 2 . . Ballistic Cannon . | . . . . . Launcher . | . . . . . Special Weapon . | . . . . . Impact Weapon 1 | . . . . 1 Slashing Weapon 1 | . . . . 1 Piercing Weapon . | . . . . . Special Melee Weapon . | . . . . . Unidentified Prototypes . | . . . . . Parts Lost 15 | . . . . 15 Power 1 | . . . . 1 Propulsion 5 | . . . . 5 Utility 6 | . . . . 6 Weapon 3 | . . . . 3 Highest Loss Streak 10 | . . . . 10 Average Slot Usage (%) 84 | . 90 100 80 63 Engine 11 | . 14 14 11 4 Treads 25 | . 28 28 25 16 Storage 10 | . 9 14 11 8 Processor 11 | . 9 14 11 12 Energy Gun 5 | . 14 3 . . Ballistic Gun 17 | . 14 24 22 8 Naked Turns . | . . . . . Heaviest Build 21 | 6 13 13 13 21 Greatest Support 60 | 40 40 40 60 60 Greatest Overweight (x) 6 | 1 . . . 6 Average Overweight (x) . | . . . . . Largest Inventory Capacity 8 | 4 8 8 8 8 Average Capacity 7 | 4 6 8 8 7 Most Carried 8 | 3 3 4 8 8 Average Carried 3 | 1 1 3 6 6 Final Capacity 8 | 4 8 8 8 4 Final Carried 8 | 1 3 3 8 4 Class Distribution -------------------- 100% | Mutant Dominant Class ---------------- Mutant | -10/Materials Mutant | -10/Mines Mutant | -9/Materials Mutant | -8/Materials Resources | -11 -10 -10 -9 -8 ----------- Run | Scr Mat Min Mat Mat Matter Collected 463 | 254 48 21 95 45 Remotely . | . . . . . Salvage Created 745 | 122 282 16 58 267 Parts 43 | 8 16 3 1 15 Haulers Intercepted . | . . . . . Recyclers Shooed . | . . . . . Parts Field Recycled . | . . . . . Retrieved Matter . | . . . . . Parts Self-Destructed . | . . . . . Prevented . | . . . . . Kills | -11 -10 -10 -9 -8 ------- Run | Scr Mat Min Mat Mat Combat Hostiles Destroyed 18 | . 8 1 1 8 Melee 8 | . . . . 8 Guns 8 | . 6 1 1 . AOE 2 | . 2 . . . Classes Destroyed 7 | 2 3 . 1 1 Builder 1 | . 1 . . . Tunneler 2 | 2 . . . . Recycler 1 | 1 . . . . Swarmer 7 | . 3 1 . 3 Grunt 9 | . 5 . . 4 Duelist 1 | . . . . 1 Sentry 1 | . . . 1 . Best Kill Streak 5 | 2 4 1 1 5 Combat Bots Only 5 | . 3 1 1 5 Max Kills in Single Turn 3 | 1 3 1 1 1 Gunslinging 1 | . 1 . . . Exploded 2 | . 2 . . . Melee 1 | . . . . 1 Uniques/NPCs Destroyed . | . . . . . Combat | -11 -10 -10 -9 -8 -------- Run | Scr Mat Min Mat Mat Damage Taken 2351 | . 225 . 274 1852 Core 607 | . 20 . 27 560 Absorbed by Shields . | . . . . . Core Remaining (%) 95 | 100 . 92 93 . Volleys Fired 35 | 4 18 1 11 1 Largest 2 | 2 2 2 2 1 Hottest 60 | 60 60 60 40 20 Shots Fired 69 | 8 36 2 22 1 Gun 69 | 8 36 2 22 1 Cannon . | . . . . . Launcher . | . . . . . Special . | . . . . . Kinetic 46 | 4 18 1 22 1 Thermal 13 | . 12 1 . . Explosive . | . . . . . Electromagnetic 10 | 4 6 . . . Robot Hit Streak 13 | 5 12 13 12 13 Robot Miss Streak 2 | . 2 . 2 . Penetration Max . | . . . . . Secondary Targets 1 | . 1 . . . Max Gunslinging Chain 1 | . 1 . . . Shots Hit Robots 72 | 5 29 1 19 18 Core Hits 32 | 3 16 1 3 9 Critical Hits . | . . . . . Critical Kills . | . . . . . Critical Parts Destroyed . | . . . . . Melee Attacks 22 | . . . . 22 Impact 3 | . . . . 3 Slashing 19 | . . . . 19 Piercing . | . . . . . Sneak Attacks . | . . . . . Combat Hostiles . | . . . . . Follow-up Attacks 2 | . . . . 2 Damage Inflicted 1194 | 60 457 12 152 513 Guns 508 | 60 276 12 152 8 Cannons . | . . . . . Explosions 181 | . 181 . . . Melee 504 | . . . . 504 Ramming 1 | . . . . 1 Kinetic 261 | 6 95 . 152 8 Thermal 311 | . 299 12 . . Explosive . | . . . . . Electromagnetic 117 | 54 63 . . . Impact 37 | . . . . 37 Slashing 467 | . . . . 467 Piercing . | . . . . . Highest Corruption 1 | . 1 1 . 1 Average Corruption 1 | . 1 1 . 1 Corruption Purged . | . . . . . Effects 4 | . 2 2 . . Message Errors 2 | . 1 1 . . Data Loss (minor) 2 | . 1 1 . . Overload Shots . | . . . . . Overflow Damage 11 | . . . . 11 Projectiles . | . . . . . Explosions . | . . . . . Melee 11 | . . . . 11 Knockbacks . | . . . . . Impact . | . . . . . Kinetic . | . . . . . Secondary . | . . . . . Self-Inflicted Damage 30 | . 30 . . . Shots 1 | . 1 . . . Rammed 1 | . . . . 1 Targets Rammed 1 | . . . . 1 Kicked . | . . . . . Crushed . | . . . . . Highest Temperature 124 | 20 124 20 6 3 Average Temperature 42 | 13 52 15 4 3 Received Heat Transfer 1068 | . 117 . 168 783 Siege Activations . | . . . . . Robots Corrupted . | . . . . . Combat Hostiles . | . . . . . Parts Fried . | . . . . . Impact Corruptions . | . . . . . Robots Melted . | . . . . . Combat Hostiles . | . . . . . Parts Melted . | . . . . . Heat Transferred 450 | . 425 25 . . Parts Sabotaged . | . . . . . Parts Stolen . | . . . . . Parts Stripped . | . . . . . Power Chain Reactions 1 | . 1 . . . Missiles Intercepted . | . . . . . Alert | -11 -10 -10 -9 -8 ------- Run | Scr Mat Min Mat Mat Peak Influence 220 | 15 220 97 160 130 Initial 31 | . 8 23 31 . Average 74 | 6 122 82 51 44 Maximum Alert Level 1 | . 1 . . . Low Security (%) 95 | 100 84 100 100 100 Level 1 4 | . 15 . . . Level 2 . | . . . . . Level 3 . | . . . . . Level 4 . | . . . . . Level 5 . | . . . . . High Security . | . . . . . Max Security . | . . . . . Squads Dispatched 7 | . 2 . 2 3 Investigation 4 | . 2 . 1 1 Extermination . | . . . . . Reinforcement 3 | . . . 1 2 Assault . | . . . . . Garrison . | . . . . . Intercept . | . . . . . Construction Impeded . | . . . . . Haulers Reinforced . | . . . . . Stealth | -11 -10 -10 -9 -8 --------- Run | Scr Mat Min Mat Mat Distress Signals . | . . . . . Communications Jammed . | . . . . . Distress Signals . | . . . . . Times Spotted 38 | . 9 2 10 17 Peak Tracking Total 12 | . 3 3 6 12 Tactical Retreats . | . . . . . Traps | -11 -10 -10 -9 -8 ------- Run | Scr Mat Min Mat Mat Traps Triggered 1 | . . . 1 . Indirectly . | . . . . . Trap Hack Attempts . | . . . . . Triggered . | . . . . . Disarmed . | . . . . . Reprogrammed . | . . . . . Reused . | . . . . . Traps Extracted . | . . . . . Installed . | . . . . . Triggered . | . . . . . Machines | -11 -10 -10 -9 -8 ---------- Run | Scr Mat Min Mat Mat Machines Disabled . | . . . . . Max in Single Turn . | . . . . . Machines Sabotaged . | . . . . . Garrisons Compromised . | . . . . . Overloaded Fab Kills . | . . . . . Fab Network Shutdowns . | . . . . . Hacking | -11 -10 -10 -9 -8 --------- Run | Scr Mat Min Mat Mat Machines Accessed 9 | . 4 . 3 2 Terminals 7 | . 4 . 2 1 Fabricators . | . . . . . Repair Stations . | . . . . . Recycling Units 1 | . . . 1 . Scanalyzers 1 | . . . . 1 Garrison Access . | . . . . . Total Hacks 24 | . 11 . 9 4 Successful 17 | . 6 . 9 2 Failed 7 | . 5 . . 2 Catastrophic 2 | . 1 . . 1 Database Lockouts . | . . . . . Manual 15 | . 10 . 1 4 Terminals 22 | . 11 . 8 3 Fabricators . | . . . . . Repair Stations . | . . . . . Recycling Units 1 | . . . 1 . Scanalyzers 1 | . . . . 1 Garrison Access . | . . . . . Terminal Hacks 15 | . 6 . 8 1 Record 2 | . . . 2 . Level Access Points 1 | . . . 1 . Branch Access Points 2 | . 2 . . . Terminal Index 2 | . 1 . . 1 Alert Level 2 | . . . 2 . Locate Traps 1 | . 1 . . . Dispatch Records 1 | . . . 1 . Transport Status 1 | . . . 1 . Recall Investigation 2 | . 2 . . . Hauler Manifests 1 | . . . 1 . Fabricator Hacks . | . . . . . Repair Station Hacks . | . . . . . Recycling Unit Hacks 1 | . . . 1 . Retrieve Components 1 | . . . 1 . Scanalyzer . | . . . . . Garrison Access Hacks . | . . . . . Unauthorized Hacks 1 | . . . . 1 Terminals . | . . . . . Fabricators . | . . . . . Repair Stations . | . . . . . Recycling Units . | . . . . . Scanalyzers 1 | . . . . 1 Extract 1 | . . . . 1 Garrison Access . | . . . . . Data Cores Recovered . | . . . . . Used . | . . . . . Hacking Detections 7 | . 4 . 2 1 Full Trace Events 6 | . 4 . 1 1 Feedback Events 1 | . 1 . . . Corruption 1 | . 1 . . . Feedback Blocked . | . . . . . Robot Schematics Acquired . | . . . . . Robots Built . | . . . . . Matter . | . . . . . Time . | . . . . . Total Robot Build Rating . | . . . . . Part Schematics Acquired 1 | . . . . 1 Parts Built . | . . . . . Matter . | . . . . . Time . | . . . . . Total Part Build Rating . | . . . . . Parts Repaired . | . . . . . Time . | . . . . . Parts Recycled . | . . . . . Recycled Matter . | . . . . . Retrieved Matter . | . . . . . Retrieved Components 2 | . . . 2 . Parts Scanalyzed . | . . . . . Part Schematics Acquired . | . . . . . Parts Damaged . | . . . . . Bothacking | -11 -10 -10 -9 -8 ------------ Run | Scr Mat Min Mat Mat Used RIF Installer . | . . . . . Robots Hacked . | . . . . . Non-combat . | . . . . . Combat . | . . . . . Robot Hacks Applied . | . . . . . Relay Couplers Released . | . . . . . Robots Rewired . | . . . . . Allies Hacked . | . . . . . Hacks Repelled . | . . . . . Allies | -11 -10 -10 -9 -8 -------- Run | Scr Mat Min Mat Mat Total Allies 3 | . . 3 . . Largest Group 3 | . . 3 3 . Highest-Rated Group 40 | . . 40 40 . Highest-Rated Ally 16 | . . 16 16 . Total Orders 1 | . . . 1 . GUARD 1 | . . . 1 . Ally Attacks 30 | . . 10 20 . Total Damage 325 | . . 114 211 . Kills 6 | . . 2 4 . Allies Corrupted . | . . . . . Allies Melted . | . . . . . Intel | -11 -10 -10 -9 -8 ------- Run | Scr Mat Min Mat Mat Robot Analysis Total . | . . . . . Derelict Logs Recovered . | . . . . . Drone Launches . | . . . . . Drone Recoveries . | . . . . . Exploration | -11 -10 -10 -9 -8 ------------- Run | Scr Mat Min Mat Mat Turns Passed 1550 | 124 481 262 466 217 Spaces Moved 830 | 78 238 154 268 92 Core 30 | 23 . . . 7 Treads 800 | 55 238 154 268 85 Legs . | . . . . . Wheels . | . . . . . Hover . | . . . . . Flight . | . . . . . Fastest Speed 50 | 50 160 160 160 145 Average Speed 157 | 132 160 160 160 162 Slowest Speed 350 | 160 160 160 160 350 Overloaded Moves . | . . . . . Propulsion Burnouts . | . . . . . Robots Hopped . | . . . . . Cave-ins Triggered . | . . . . . Exploration Rate (%) 27 | 5 46 35 34 16 Regions Visited 4 Branch Regions 1 Pre-discovered Areas . | . . . . . Known Exits Taken 2 | . 1 . 1 . Unknown Exits Taken 2 | 1 . 1 . . Scrap Searched . | . . . . . Spaces Dug . | . . . . . Terrain Destroyed 5 | . 5 . . . Melee . | . . . . . Projectile . | . . . . . AOE 5 | . 5 . . . Terrain Rammed . | . . . . . Walls Destroyed . | . . . . . Machines Disabled . | . . . . . Actions | -11 -10 -10 -9 -8 --------- Run | Scr Mat Min Mat Mat Total 979 | 92 305 167 288 127 Wait 52 | . 43 9 . . Move 826 | 77 237 153 267 92 Hop . | . . . . . Pick Up 22 | 6 4 1 7 4 Fast Attach 3 | . . . 1 2 Attach 15 | 5 2 . . 8 Detach . | . . . . . Swap 3 | . 1 2 . . Drop 3 | . . 1 2 . Fire 35 | 4 18 1 11 1 Melee 19 | . . . . 19 Ram . | . . . . . Kick . | . . . . . Crush 1 | . . . . 1 Escape Stasis . | . . . . . Rewire . | . . . . . Trap . | . . . . . Miscellaneous . | . . . . . Route ------- -11/Scrapyard -10/Materials (discovered 3 exits: *Mat / *Min x2) -10/Mines (discovered 2 exits: *Mat x2) -9/Materials (discovered 3 exits: *Mat x3) -8/Materials History --------- Turn | Location | Event 11 | -11/Scrapyard | Discovered new exit (range 15) 125 | -11/Scrapyard | Entered Materials 308 | -10/Materials | Build established: Mutant 330 | -10/Materials | Identified exit to Mines 416 | -10/Materials | Discovered new exit (range 16) 606 | -10/Materials | Entered Mines 613 | -10/Mines | Assisted by bots powering up and referring to "LRC-V3" 654 | -10/Mines | Discovered new exit (range 9) 856 | -10/Mines | Discovered new exit (range 7) 868 | -10/Mines | Entered Materials 868 | -9/Materials | Accompanied by 3 allies 868 | -9/Materials | Evolved 2 slots: Propulsion x2 1216 | -9/Materials | Identified exit to Materials 1334 | -9/Materials | Entered another Materials area 1334 | -8/Materials | Evolved 2 slots: Utility x2 1467 | -8/Materials | Core integrity fell below 50% 1501 | -8/Materials | Lost 10 parts (1p4n3u2w) 1528 | -8/Materials | Core integrity fell below 20% 1551 | -8/Materials | Destroyed by H-55 Commando with Gauss Rifle Last Messages --------------- 01522_ Acquired Hrd. Medium Armor Plating. 01527_ Maul follow-up attack on G-47 Trooper. 01533_ R-06 Scavenger collects Flight Unit. 01533_ L-31 Rogue destroyed. 01535_ Penetrated by Slug. 01536_ Acquired 45 matter. 01538_ Slug penetrates Terminal. 01538_ Terminal disabled. 01538_ Maul destroyed. 01539_ G-47 Trooper destroyed. 01541_ Penetrated by Slug. 01541_ R-06 Scavenger collects Lgt. Assault Rifle. 01545_ Acquired Core Shielding. 01545_ R-06 Scavenger collects Aluminum Leg. 01545_ Penetrated by Slug. 01545_ Hrd. Medium Armor Plating destroyed. 01546_ K-01 Serf collects debris. 01546_ Med. Storage Unit destroyed. 01549_ G-47 Trooper destroyed. 01551_ Penetrated by Slug. Map ----- +----------------------------------------------------+ | ??????????????????????????????????????????? | | ??????????????????????????????????????????? | | ??????????????????????????????????????????? | | ??????????????????????????????????????????? | | ??????????????????????????????????????????? | | ??????????????????????????????????????????? | | ??????????????????????????????????????????? | | ??????????????????????????????????????????? | | ??????????????????????????????????????????? | | ??????????????????????????????????????????? | | ??????????????????????????????????????????? | | ??????????????????????????????????????????? | | ??????????????????????????????????????????? | | ????????????????????????????? ?????????? | | ????????????????????????????? ?????????? | | ????????????????????????????? #?????????? | | ????????????????????????????? #?????????? | | ????????????????????????????+ #?????????? | | ????????????????????????????# #?????????? | | ????????????????????????????# #?????????? | | ????????????????????????????# #?????????? | | ????????????????????????????# #?????????? | | ????????????????????????????# #?????????? | | ????????????????????????????# #?????????? | | ????????????????????######### ##????????? | | ????????????????????#! !@!# #????????? | | ????????????????????# %*[%# ##### #??? | | ????????????????????# [ ="g/=% #??? | | ????????????????????#YhgT"%#%% !###??????? | | ????????????????????# ""*# #????????? | | ????????????????????#! ###r###????????? | | ??????????????????############ #??????????? | | ??????????????????# ##?????????? | | ????????????####### #######???? | | ?????????? = [[[ #???? | | ????????????????### % = [[[ #???? | | ?????????????????#" T [[[ #???? | | ?????????????????#" #???? | | ?????????????????#" #???? | | ?????????????????#T #???? | | ?????????????????#" #???? | | ?????????????????#" """ """ """ #???? | | ?????????????????#" """ """ """ #???? | | ?????????????????## """ """ """ #???? | | ?????????????????# #???? | | ?????????????????# #???? | | ?????????????????# #???? | | ?????????????????# ##### #???? | | ????????????????# ????# #### #???? | | ????????????????????=*?????# #????#???? | +----------------------------------------------------+ Best States ------------- Heat Dissipation 31 Energy Generation 10 Energy Capacity 125 Matter Stores 300 Matter Capacity 300 Sight Range 16 Robot Scan Range 10 Terrain Scan Density 10 Armor Coverage 225 Resistance: KI 20 Resistance: TH 20 Resistance: EX 20 Resistance: EM 20 Resistance: I 20 Resistance: S 20 Resistance: P 20 Core Shielding 20 Evasion (%) 50 Targeting Accuracy 5 Melee Accuracy 5 Recoil Reduction 3 Offensive Hacking 10 Item Schematics ----------------- Imp. Datajack | -8/Materials | Extracted Robot Schematics ------------------ None Fabricated ------------ Nothing Alien Tech Used ----------------- None Achievements -------------- None Challenges ------------ None Game ------ Seed AlloyMassThruster Manual? 0 Play Time 00:18:19 Cumulative 120.0 hours Start 2020.10.20 @ 18:29:06 End 2020.10.20 @ 18:48:06 Sessions 1 Manual Loads 0 Difficulty Adventurer Special Mode None Game No. 149 Rogue 102 Adventurer 4 Explorer 43 Win Type - Total 2 Types 1/0/1/0/0/0/0/0/0 Lore% 27 Gallery% 58 Achievement% 48 Wizard Run 0 Options --------- ASCII 0 Keyboard 0 Movement Mouse Keybinds 0 Fullscreen 1 Font 12/Smallcaps Map View 83x54 Tactical HUD 1 Map Filters NONE Filters NONE Steam 1 RUN: 995be3f5-779e-4a99-a1b1-246c68833d64